bitfinex-derivatives/quotes_ETHF0:USTF0_20250130
["timestamp","ask_amount","ask_price","bid_price","bid_amount"]
[1738201087848,0.6411716,3142.8,3142.2,0.0047716]
[1738201088050,0.0047716,3142.8,3142.4,0.63648]
[1738201088246,0.0047716,3142.8,3142.3,4.2495]
[1738201088750,0.0047716,3142.8,3142.3,4.88599]
[1738201088952,0.0047716,3142.8,3142.5,0.63646]
[1738201089246,0.0047716,3142.8,3142.4,0.63648]
[1738201089642,0.0047716,3142.8,3142.5,0.63645]
[1738201090261,0.0047716,3142.8,3142.2,3.94155431]
[1738201090262,0.0047716,3142.8,3142.2,0.0047716]
[1738201090547,6.61548271,3142.6,3140.9,1.0771]
[1738201090744,0.63668,3141.5,3140.9,1.0771]
[1738201091343,3.2078,3141.6,3140.9,1.0771]
[1738201091749,3.2078,3141.6,3140.9,1.0818716]
[1738201092056,0.63667,3141.5,3141.0,0.5462]
[1738201092247,0.63669,3141.4,3141.0,3.95388271]
[1738201092448,0.63667,3141.5,3141.0,3.95388271]
[1738201092751,3.2078,3141.6,3141.0,3.95388271]
[1738201093148,3.84446,3141.6,3141.0,4.59063271]
[1738201093454,0.63664,3141.7,3141.1,0.63673]
[1738201093655,1.516,3142.4,3141.5,3.2078]
[1738201093949,0.63651,3142.3,3141.8,4.04428271]
[1738201094144,0.5072,3142.5,3141.8,3.40768271]
[1738201094350,3.2078,3142.6,3141.8,3.40768271]
[1738201094351,3.84425,3142.6,3142.0,0.63655]
[1738201094551,3.84424,3142.6,3142.0,0.63656]
[1738201094755,1.532,3142.9,3142.2,3.40768271]
[1738201094952,3.2078,3143.0,3142.3,3.2078]
[1738201095147,0.63643,3142.7,3142.3,3.2078]
[1738201095344,3.2078,3143.0,3142.3,3.2078]
[1738201095548,3.2078,3143.0,3142.3,3.8443]
[1738201095748,3.2078,3143.0,3142.3,3.2078]
[1738201095951,3.2078,3143.0,3141.9,0.5086]
[1738201095952,11.88948271,3143.0,3141.9,0.5086]
[1738201096155,0.63665,3141.6,3141.3,1.0086]
[1738201096455,0.63665,3141.6,3141.3,0.5058]
[1738201096650,0.5004,3142.1,3141.3,0.5058]
[1738201097045,0.63666,3141.6,3141.3,0.5058]
[1738201097250,0.5004,3142.1,3141.3,0.5058]
[1738201097444,3.2078,3141.8,3141.1,0.5208]
[1738201097850,6.61548271,3141.8,3141.1,0.5208]
[1738201098152,0.63662,3141.7,3141.2,3.84451]
[1738201098344,0.63665,3141.6,3141.2,3.2078]
[1738201098751,3.2078,3141.8,3141.3,0.63669]
[1738201098958,3.8444,3141.8,3141.3,0.63669]
[1738201099153,3.2078,3141.8,3141.2,3.2078]
[1738201099354,0.63663,3141.7,3141.2,3.2078]
[1738201099652,3.2078,3141.8,3141.4,0.63667]
[1738201100059,0.63657,3142.0,3141.6,0.63664]
[1738201100250,0.5004,3142.1,3141.6,3.84444]
[1738201100447,0.63654,3142.2,3141.6,3.2078]
[1738201100752,3.2078,3142.6,3141.7,0.5297]
[1738201100956,0.63652,3142.2,3141.8,0.5161]
[1738201101148,0.63655,3142.1,3141.8,0.5161]
[1738201101353,0.63662,3141.7,3141.2,0.63672]
[1738201101547,0.63662,3141.7,3141.2,1.68252]
[1738201101763,3.2078,3142.2,3141.2,1.0458]
[1738201101962,0.63664,3141.7,3141.2,1.68251]
[1738201102256,0.63666,3141.6,3141.2,1.0458]
[1738201102459,0.63663,3141.7,3141.2,1.68251]
[1738201102758,0.63664,3141.7,3141.2,1.68251]
[1738201102959,3.2078,3142.2,3141.2,1.0458]
[1738201103155,0.63668,3141.5,3141.2,1.0458]
[1738201103356,0.63667,3141.5,3141.2,1.0458]
[1738201103661,3.2078,3141.8,3141.2,1.0458]
[1738201103662,0.63665,3141.6,3141.2,1.0458]
[1738201104065,3.2078,3141.8,3141.2,1.0458]
[1738201104557,0.63673,3141.2,3141.1,3.7286]
[1738201104864,0.63671,3141.3,3141.1,3.7286]
[1738201105663,0.63669,3141.4,3141.1,3.7286]
[1738201106162,0.5155,3141.7,3141.1,3.7286]
[1738201106355,0.6367,3141.4,3141.1,3.7286]
[1738201107161,0.5155,3141.7,3141.1,3.7286]
[1738201107557,3.2078,3141.8,3141.2,0.4992]
[1738201107765,3.2078,3141.8,3141.1,3.2078]
[1738201107954,0.63663,3141.7,3141.2,2.18361]
[1738201108260,0.63663,3141.7,3141.3,0.6367]
[1738201108458,3.2078,3141.8,3141.5,0.63666]
[1738201108663,0.63663,3141.7,3141.3,0.63669]
[1738201109163,3.2078,3141.8,3141.2,1.5469]
[1738201109663,0.63671,3141.3,3141.2,1.002]
[1738201111563,0.63671,3141.3,3141.2,0.5028]
[1738201112665,0.5318,3141.7,3140.9,0.0047716]
[1738201112967,0.63677,3141.0,3140.9,0.0047716]
[1738201114468,3.2078,3142.0,3140.9,0.0047716]
[1738201114661,0.63667,3141.5,3141.2,0.63671]
[1738201114861,3.2078,3142.0,3140.9,0.0047716]
[1738201115067,0.63677,3141.0,3140.9,0.0047716]
[1738201117374,0.63677,3141.0,3140.9,1.6e-06]
[1738201117769,14.23677,3141.0,3140.9,1.6e-06]
[1738201118170,0.6369,3140.4,3139.9,1.15648]
[1738201118872,0.63692,3140.3,3139.9,1.15648]
[1738201119669,0.63692,3140.3,3139.9,0.5195]
[1738201119870,0.63692,3140.3,3139.9,1.15648]
[1738201120072,0.63318978,3140.3,3139.9,1.15648]
[1738201120470,0.0047716,3140.4,3140.2,3.2078]
[1738201120773,0.0047716,3140.4,3140.3,1.14151]
[1738201120973,0.0047716,3140.4,3140.3,1.66401]
[1738201122068,0.0047716,3140.4,3140.3,1.0271]
[1738201122770,0.6416616,3140.4,3140.3,0.5046]
[1738201122974,0.6416616,3140.4,3139.9,0.5195]
[1738201122975,0.63696,3140.1,3139.9,1.0241]
[1738201123174,0.63697,3140.0,3139.9,0.5195]
[1738201123374,0.0047716,3140.4,3139.9,1.0241]
[1738201123875,0.63694,3140.2,3140.0,3.2078]
[1738201124070,0.63695,3140.1,3140.0,3.2078]
[1738201124870,0.63694,3140.2,3140.0,3.84477]
[1738201125071,0.63694,3140.2,3140.0,3.2078]
[1738201125277,0.63695,3140.1,3140.0,3.2078]
[1738201126677,0.63694,3140.2,3140.0,3.84476]
[1738201126878,0.6416716,3140.4,3140.2,0.63692]
[1738201127380,0.63692,3140.3,3140.1,0.63694]
[1738201127676,0.0047716,3140.4,3140.0,3.2078]
[1738201127882,0.63695,3140.1,3140.0,3.2078]
[1738201131088,0.63694,3140.2,3140.0,3.2078]
[1738201131686,0.63691,3140.3,3140.0,3.84477]
[1738201131883,0.0047716,3140.4,3140.0,3.2078]
[1738201132077,0.63692,3140.3,3140.0,3.2078]
[1738201132776,0.6416716,3140.4,3140.0,3.84475]
[1738201133180,0.0047716,3140.4,3140.0,3.2078]
[1738201133379,0.63692,3140.3,3140.0,3.2078]
[1738201133777,0.63692,3140.3,3140.0,3.84476]
[1738201133983,0.6416716,3140.4,3140.1,0.63694]
[1738201134180,0.6416716,3140.4,3140.0,3.2078]
[1738201134381,0.6416716,3140.4,3140.1,0.63695]
[1738201134582,0.0047716,3140.4,3140.3,0.63691]
[1738201134882,0.0047716,3140.4,3140.2,0.63692]
[1738201135078,0.0047716,3140.4,3140.1,0.63695]
[1738201136178,0.0047716,3140.4,3140.0,3.2078]
[1738201136378,0.0047716,3140.4,3140.3,0.63691]
[1738201136893,0.63682,3140.8,3140.5,0.63686]
[1738201137184,0.63682,3140.8,3140.6,1.0212]
[1738201139083,0.0047716,3141.0,3140.6,1.0212]
[1738201139486,0.6368,3140.9,3140.6,1.0212]
[1738201139789,0.6368,3140.9,3140.6,1.65804]
[1738201139990,0.63685,3140.6,3140.0,3.84476]
[1738201140292,0.6369,3140.4,3140.1,1.16354]
[1738201140582,0.63691,3140.3,3140.1,1.16354]
[1738201140985,3.2078,3140.7,3140.1,0.5266]
[1738201140986,0.63693,3140.2,3140.1,0.5266]
[1738201141589,0.5306,3140.6,3140.1,0.5266]
[1738201141590,0.63687,3140.5,3140.2,0.63692]
[1738201141785,0.0047716,3141.0,3140.4,0.63688]
[1738201141985,0.63684,3140.7,3140.4,0.63688]
[1738201142185,0.63684,3140.7,3140.1,0.5266]
[1738201142381,0.0047716,3141.0,3140.6,0.63683]
[1738201142579,0.0047716,3141.0,3140.8,0.63679]
[1738201142883,0.0047716,3141.0,3140.7,1.0897]
[1738201142884,0.0047716,3141.0,3140.9,0.63679]
[1738201143086,0.0047716,3141.0,3140.8,0.5052]
[1738201143287,0.0047716,3141.0,3140.8,1.142]
[1738201143590,0.0047716,3141.0,3140.9,0.63679]
[1738201144294,0.0047716,3141.0,3140.9,3.84459]
[1738201144500,3.2078,3142.2,3141.6,0.63663]
[1738201144680,0.63656,3142.1,3141.8,0.6366]
[1738201144887,3.84434,3142.2,3141.9,1.18057]
[1738201145093,3.84434,3142.2,3141.9,0.544]
[1738201145094,0.63656,3142.0,3141.9,0.544]
[1738201145588,3.2078,3142.2,3141.9,0.544]
[1738201145781,3.2078,3142.2,3142.0,0.63655]
[1738201146181,3.2078,3142.2,3141.9,0.544]
[1738201146393,3.2078,3142.2,3142.1,0.63654]
[1738201146788,0.0047716,3142.3,3142.1,0.63654]
[1738201146987,0.0047716,3142.3,3142.0,3.2078]
[1738201147188,0.0047716,3142.3,3142.2,0.63652]
[1738201147486,0.0047716,3142.3,3142.0,3.84436]
[1738201147989,0.0047716,3142.3,3142.1,0.63654]
[1738201148188,0.0047716,3142.3,3142.2,0.63652]
[1738201148392,0.0047716,3142.3,3142.0,3.2078]
[1738201148599,0.0047716,3142.3,3142.1,1.18594]
[1738201149391,0.0047716,3142.3,3142.1,0.5494]
[1738201149595,0.0047716,3142.3,3142.1,1.18594]
[1738201150693,0.0047716,3142.3,3142.2,0.63652]
[1738201151198,0.0047716,3142.3,3142.2,1.18672]
[1738201151791,0.0047716,3142.3,3142.2,0.5502]
[1738201152595,0.0047716,3142.3,3142.2,1.18672]
[1738201153396,0.63637,3143.0,3142.2,0.5502]
[1738201153690,0.63635,3143.1,3142.8,0.6364]
[1738201154094,14.135,3143.3,3142.4,3.2078]
[1738201154290,14.135,3143.3,3142.2,0.5502]
[1738201154291,3.2078,3142.7,3142.2,0.5502]
[1738201154491,0.63654,3142.1,3142.0,3.2078]
[1738201154793,0.63659,3141.9,3141.6,0.0047716]
[1738201155097,3.2078,3142.2,3141.6,0.0047716]
[1738201155297,0.63662,3141.7,3141.6,0.0047716]
[1738201155496,13.6,3142.1,3141.6,0.0047716]
[1738201155692,0.6366,3141.9,3141.6,0.6414016]
[1738201156100,3.2078,3142.2,3141.7,0.63662]
[1738201156288,0.6366,3141.9,3141.6,0.6414116]
[1738201157002,0.63662,3141.7,3141.6,0.0047716]
[1738201159099,0.63662,3141.7,3141.6,0.00325057]
[1738201161305,5.63662,3141.7,3141.6,0.001913]
[1738201161601,1.59162,3141.6,3140.6,1.5627]
[1738201161807,0.63681,3140.8,3140.4,0.63688]
[1738201162497,0.5277,3141.0,3140.3,3.2125716]
[1738201162689,0.0047716,3140.9,3140.5,0.63685]
[1738201163094,0.6415716,3140.9,3140.4,0.63687]
[1738201163289,0.6415716,3140.9,3140.4,0.63688]
[1738201163500,0.63681,3140.8,3140.4,0.63688]
[1738201164197,0.63682,3140.8,3140.3,0.0047716]
[1738201164399,0.0047716,3140.9,3140.4,0.63688]
[1738201164600,0.63681,3140.8,3140.4,0.63688]
[1738201165005,0.6415616,3140.9,3140.5,0.63686]
[1738201165797,0.63681,3140.8,3140.4,0.63688]
[1738201166002,0.6415616,3140.9,3140.3,0.0047716]
[1738201166202,0.63682,3140.8,3140.3,0.6416716]
[1738201166401,0.6415716,3140.9,3140.4,0.63689]
[1738201166605,0.63681,3140.8,3140.4,0.63689]
[1738201168209,0.63682,3140.8,3140.4,0.63688]
[1738201168910,0.6415616,3140.9,3140.5,0.63686]
[1738201169205,0.63681,3140.8,3140.4,1.66128]
[1738201170308,0.0047716,3140.9,3140.4,1.66129]
[1738201170309,0.63683,3140.7,3140.4,1.66129]
[1738201170808,3.2078,3140.7,3140.3,0.0047716]
[1738201171004,0.63689,3140.4,3140.3,0.0047716]
[1738201173999,0.63684,3140.7,3140.3,0.6416816]
[1738201174203,2.83417021,3140.9,3140.3,0.0047716]
[1738201174404,0.63689,3140.4,3140.3,0.0047716]
[1738201175324,3.2078,3140.7,3140.3,0.0047716]
[1738201175499,0.63689,3140.4,3140.3,0.0047716]
[1738201182022,0.63689,3140.4,3140.3,0.0047716]
[1738201185315,0.63689,3140.4,3140.3,0.00324939]
[1738201185918,0.63707,3139.5,3139.4,0.5468]
[1738201186120,7.61319861,3139.5,3138.2,3.98767472]
[1738201186310,2.82939861,3139.0,3138.5,1.0414]
[1738201186714,0.6372,3138.9,3138.5,1.0414]
[1738201186917,2.82939861,3139.0,3138.5,1.0414]
[1738201187119,6.03719861,3138.7,3138.4,0.0047716]
[1738201187325,3.46666861,3138.5,3137.5,0.5345]
[1738201187519,6.03719861,3138.1,3137.5,0.5345]
[1738201187719,2.82939861,3138.1,3137.6,0.63746]
[1738201187919,2.82939861,3138.4,3137.6,0.63746]
[1738201188114,2.82939861,3138.4,3137.5,0.5345]
[1738201188115,0.63746,3137.6,3137.5,0.5345]
[1738201188320,0.6375,3137.4,3137.2,1.0308]
[1738201188520,2.82939861,3137.6,3137.2,1.0308]
[1738201188727,3.46685861,3137.6,3137.2,1.03401004]
[1738201189123,2.82939861,3137.6,3137.2,1.03401004]
[1738201189323,3.2078,3137.8,3137.2,1.03401004]
[1738201189523,2.82939861,3137.9,3137.2,1.03401004]
[1738201189524,2.82939861,3137.9,3137.4,0.63748]
[1738201189723,6.67453861,3138.2,3137.7,0.63743]
[1738201189923,0.63736,3138.1,3137.8,0.5345]
[1738201190329,6.67453861,3138.2,3137.8,0.5345]
[1738201190523,3.2078,3138.2,3137.8,0.5345]
[1738201190726,3.2078,3138.7,3137.8,11.57169861]
[1738201191034,2.82939861,3138.8,3137.8,6.57169861]
[1738201191323,2.82939861,3138.8,3137.2,1.28635382]
[1738201191324,0.63743,3137.8,3137.2,1.67153004]
[1738201191519,2.82939861,3137.9,3137.3,0.5152]
[1738201191723,3.46680861,3137.9,3137.3,1.15271]
[1738201192335,0.63737,3138.1,3137.5,0.63746]
[1738201192525,7.66219861,3138.2,3137.3,0.5152]
[1738201192720,0.63735,3138.1,3137.4,0.63748]
[1738201193032,7.66219861,3138.2,3137.4,3.2078]
[1738201193033,3.2078,3138.2,3137.4,3.2078]
[1738201193530,3.2078,3138.2,3137.8,0.63741]
[1738201193729,3.2078,3138.2,3137.4,3.2078]
[1738201193730,3.2078,3138.2,3137.9,0.63738]
[1738201193930,2.82939861,3138.2,3137.3,3.2078]
[1738201194122,2.82939861,3138.2,3137.5,0.516]
[1738201194433,0.6374,3137.9,3137.5,0.516]
[1738201194731,0.63741,3137.9,3137.5,0.516]
[1738201195030,0.63739,3138.0,3137.5,1.15348]
[1738201195224,0.6374,3137.9,3137.5,0.516]
[1738201195626,0.63735,3138.1,3137.6,0.63745]
[1738201195828,3.2078,3138.3,3137.9,0.63738]
[1738201196030,0.63732,3138.3,3137.8,0.63741]
[1738201196228,0.63732,3138.3,3137.9,0.5026]
[1738201196731,0.63729,3138.5,3138.0,0.63737]
[1738201197034,3.84504,3138.7,3138.2,0.63732]
[1738201197235,3.84504,3138.7,3138.3,0.5257]
[1738201197527,3.2078,3138.7,3138.3,1.70771]
[1738201197733,0.0047716,3139.0,3138.3,1.70771]
[1738201197734,0.0047716,3139.0,3138.3,1.0704]
[1738201198134,0.6419516,3139.0,3138.4,0.63727]
[1738201198335,0.0047716,3139.0,3138.5,0.63727]
[1738201198634,0.0047716,3139.0,3138.6,0.5124]
[1738201198837,0.6419516,3139.0,3138.6,0.5124]
[1738201199137,0.0047716,3139.0,3138.6,0.5124]
[1738201199330,0.0047716,3139.0,3138.6,1.14965]
[1738201199639,0.0047716,3139.0,3138.7,0.63722]
[1738201200337,0.0047716,3139.0,3138.6,0.5124]
[1738201200531,0.0047716,3139.0,3138.7,0.63723]
[1738201200734,0.0047716,3139.0,3138.6,1.14964]
[1738201201028,0.63725,3138.7,3138.3,1.0704]
[1738201201232,0.63725,3138.7,3138.3,1.70771]
[1738201201540,0.63726,3138.6,3138.3,1.0704]
[1738201201933,0.0047716,3139.0,3138.3,1.0704]
[1738201202226,0.0047716,3139.0,3138.4,0.63728]
[1738201202227,0.63724,3138.7,3138.4,0.63728]
[1738201202426,0.0047716,3139.0,3138.3,1.0704]
[1738201202631,0.0047716,3139.0,3138.6,0.63725]
[1738201202844,0.6419516,3139.0,3138.6,0.63724]
[1738201203131,0.6419616,3139.0,3138.3,3.89979861]
[1738201203337,0.6419616,3139.0,3138.6,0.63724]
[1738201203538,0.0047716,3139.0,3138.9,3.2078]
[1738201203729,13.6,3139.7,3138.9,6.03719861]
[1738201203930,0.63713,3139.3,3139.0,0.63717]
[1738201204131,2.82939861,3140.0,3139.1,0.5211]
[1738201204437,0.63709,3139.4,3139.1,1.15824]
[1738201204632,0.63708,3139.5,3139.1,1.15824]
[1738201204828,2.82939861,3140.0,3139.1,0.5211]
[1738201205137,0.63712,3139.3,3139.1,0.5211]
[1738201205337,0.00477951,3139.6,3139.1,0.5211]
[1738201205338,0.6371,3139.4,3139.1,0.5211]
[1738201205739,0.63708,3139.5,3139.1,0.5211]
[1738201206037,0.63712,3139.3,3139.1,0.5211]
[1738201207433,0.63716,3139.1,3138.9,0.00477951]
[1738201207736,0.00477951,3139.6,3138.9,6.04197812]
[1738201208136,0.63717,3139.0,3138.9,3.21257951]
[1738201208534,0.63717,3139.0,3138.9,0.00477951]
[1738201209131,0.5009,3139.5,3138.9,0.00477951]
[1738201209336,0.63711,3139.4,3139.0,0.63715]
[1738201209635,0.00477951,3139.6,3139.1,0.4986]
[1738201209832,0.00477951,3139.6,3139.2,2.82939861]
[1738201210031,0.00477951,3139.6,3139.5,0.63707]
[1738201210238,0.00477951,3139.6,3139.5,4.01776861]
[1738201210734,0.63692,3140.3,3140.0,0.63696]
[1738201210932,3.2078,3140.2,3139.5,3.38069861]
[1738201211326,3.2078,3140.2,3139.9,0.63697]
[1738201211538,3.2078,3140.2,3140.0,0.4986]
[1738201211739,0.64167951,3140.4,3140.1,0.63695]
[1738201212247,0.63663,3141.7,3141.2,0.63672]
[1738201212438,16.8078,3141.8,3141.2,2.82939861]
[1738201212743,16.8078,3141.8,3140.9,2.82939861]
[1738201212941,0.63668,3141.5,3140.9,3.35299861]
[1738201213137,0.63668,3141.5,3141.0,0.63676]
[1738201213338,0.64145951,3141.5,3141.0,0.63676]
[1738201213641,0.64145951,3141.5,3140.9,3.35777812]
[1738201213642,0.00477951,3141.5,3141.1,0.63674]
[1738201214234,0.00477951,3141.5,3141.2,0.63671]
[1738201214543,0.00477951,3141.5,3140.9,0.52837951]
[1738201214840,0.00477951,3141.5,3141.1,0.63674]
[1738201215032,0.00477951,3141.5,3140.9,0.52837951]
[1738201215232,0.00477951,3141.5,3141.2,0.63673]
[1738201217245,0.00477951,3141.5,3141.1,0.63673]
[1738201217438,0.00477951,3141.5,3140.9,0.52837951]
[1738201217636,0.00477951,3141.5,3141.1,0.63673]
[1738201218337,0.00477951,3141.5,3140.9,0.52837951]
[1738201218542,0.00477951,3141.5,3141.2,4.06361383]
[1738201219137,13.6,3141.4,3141.2,3.42689383]
[1738201221040,0.00477951,3141.5,3141.2,4.06360383]
[1738201221747,14.24144951,3141.5,3141.2,3.42689383]
[1738201222349,0.00477951,3141.5,3141.2,3.42689383]
[1738201223049,0.00477951,3141.5,3141.4,0.63669]
[1738201223441,0.00477951,3141.5,3141.3,0.6367]
[1738201223947,0.00477951,3141.5,3141.2,6.63469383]
[1738201224641,0.64144951,3141.5,3141.2,6.63469383]
[1738201225355,0.63669,3141.4,3141.2,6.63469383]
[1738201225746,0.63677,3141.0,3140.9,0.00477951]
[1738201226047,3.84457,3141.0,3140.9,0.00477951]
[1738201226750,17.44457,3141.0,3140.9,0.00477951]
[1738201229045,0.63689,3140.4,3140.2,6.63469383]
[1738201229550,16.8078,3141.0,3140.2,6.63469383]
[1738201229745,3.2078,3140.4,3140.2,3.42689383]
[1738201229941,0.63691,3140.3,3140.2,3.42689383]
[1738201230353,3.2078,3140.4,3139.9,0.00477951]
[1738201230354,0.63697,3140.0,3139.9,0.00477951]
[1738201230645,3.84477,3140.0,3139.9,0.00477951]
[1738201230852,0.63697,3140.0,3139.9,0.00477951]
[1738201231640,3.2078,3140.4,3140.0,0.63695]
[1738201231846,3.2078,3140.4,3140.1,3.42689383]
[1738201232045,3.2078,3140.4,3140.2,0.63692]
[1738201232451,3.2078,3140.4,3140.2,0.63693]
[1738201232848,3.2078,3140.9,3140.2,3.2078]
[1738201233040,3.2078,3140.9,3140.4,3.42689383]
[1738201233041,0.63684,3140.7,3140.4,3.42689383]
[1738201233439,0.63684,3140.7,3140.3,0.6369]
[1738201234056,0.2156,3141.2,3140.3,0.6369]
[1738201234353,0.63682,3140.8,3140.3,0.6369]
[1738201234542,0.63682,3140.8,3140.4,2.82906732]
[1738201234747,0.63685,3140.6,3140.4,2.82906732]
[1738201234943,3.2078,3140.9,3140.2,3.2078]
[1738201235153,3.2078,3140.9,3140.1,2.82906732]
[1738201235154,0.63694,3140.2,3139.9,0.00477951]
[1738201235456,0.63693,3140.3,3139.9,0.00477951]
[1738201235949,5.274,3140.7,3139.9,0.00477951]
[1738201236151,0.63695,3140.1,3139.9,0.00477951]
[1738201236954,3.19802,3140.8,3139.9,0.00477951]
[1738201237156,0.63697,3140.0,3139.9,0.00477951]
[1738201239263,0.63697,3140.0,3139.9,0.00259786]
[1738201239962,0.63697,3140.0,3139.9,0.00176897]
[1738201242662,0.544,3140.4,3139.9,0.00176897]
[1738201242864,0.63692,3140.3,3139.9,0.63873897]
[1738201243060,0.544,3140.4,3140.0,0.5013]
[1738201243462,1.1809,3140.4,3140.0,1.13827]
[1738201243763,0.544,3140.4,3140.0,0.5013]
[1738201243965,0.63692,3140.3,3140.0,0.5013]
[1738201244960,0.6369,3140.4,3140.0,1.13825]
[1738201245556,3.84467,3140.5,3140.1,0.63693]
[1738201245865,0.63686,3140.6,3140.2,0.63691]
[1738201246066,0.5492,3140.9,3140.1,0.63695]
[1738201246363,0.63686,3140.6,3140.2,0.63693]
[1738201246660,0.63684,3140.7,3140.3,0.6369]
[1738201246865,0.63684,3140.7,3140.4,0.63689]
[1738201247162,0.63684,3140.7,3140.0,3.7091]
[1738201247366,0.63684,3140.7,3140.3,0.6369]
[1738201247667,0.63683,3140.7,3140.3,3.42937896]
[1738201247871,0.63683,3140.7,3140.3,4.06627896]
[1738201248267,0.63687,3140.5,3140.3,3.42937896]
[1738201248468,0.5492,3140.9,3140.3,3.42937896]
[1738201248869,0.63685,3140.6,3140.3,3.42937896]
[1738201250168,0.5492,3140.9,3140.3,3.42937896]
[1738201250366,3.2078,3140.7,3140.0,3.7091]
[1738201250564,0.63692,3140.3,3140.0,3.7091]
[1738201250760,3.2078,3140.7,3140.0,3.7091]
[1738201250964,0.63693,3140.2,3140.0,3.7091]
[1738201252266,3.2078,3140.7,3140.0,3.7091]
[1738201252473,0.63692,3140.3,3140.0,3.7091]
[1738201253866,0.63693,3140.2,3140.0,3.7091]
[1738201255376,3.2078,3140.7,3140.0,3.7091]
[1738201255575,0.63694,3140.2,3140.0,3.7091]
[1738201256664,0.63694,3140.2,3140.0,6.53890147]
[1738201257671,0.63695,3140.2,3140.0,6.53890147]
[1738201257972,0.63697,3140.0,3139.9,0.00176897]
[1738201258366,0.63697,3140.0,3139.9,0.00096161]
[1738201258759,0.63697,3140.0,3139.9,0.00016161]
[1738201259270,1.51,3140.0,3139.1,2.82980147]
[1738201259460,0.63713,3139.2,3139.1,2.82980147]
[1738201259658,0.63713,3139.2,3138.9,1.0512]
[1738201259659,4.80038,3139.7,3138.9,1.0512]
[1738201259863,0.63715,3139.1,3138.9,1.0512]
[1738201260464,0.00477951,3139.3,3138.9,1.0512]
[1738201260674,0.63714,3139.2,3138.9,1.0512]
[1738201261070,0.00477951,3139.3,3138.9,1.0512]
[1738201261264,0.00477951,3139.3,3139.2,0.63713]
[1738201261470,3.2078,3139.7,3139.1,2.82980147]
[1738201261666,0.5524,3140.1,3139.5,2.82980147]
[1738201261871,0.63693,3140.2,3139.9,0.63698]
[1738201262072,0.63693,3140.2,3139.9,0.5478]
[1738201262373,0.63696,3140.1,3139.9,0.5478]
[1738201262574,3.2078,3140.5,3139.9,0.5478]
[1738201262780,0.00477951,3140.3,3140.1,2.82980147]
[1738201264272,0.64168951,3140.3,3140.1,2.82980147]
[1738201264473,0.00477951,3140.3,3140.1,2.82980147]
[1738201264674,0.00477951,3140.3,3140.2,0.4992]
[1738201264877,0.00477951,3140.3,3140.2,1.13613]
[1738201265069,0.00477951,3140.3,3140.2,0.4992]
[1738201265379,0.63701,3139.9,3139.6,3.2078]
[1738201265773,0.00477951,3140.3,3139.6,3.84483]
[1738201266076,0.00477951,3140.3,3139.7,0.5055]
[1738201266277,0.63701,3139.8,3139.7,0.5055]
[1738201267677,3.2078,3140.0,3139.6,3.2078]
[1738201267879,0.63703,3139.7,3139.6,3.2078]
[1738201269381,0.63707,3139.5,3139.4,0.4992]
[1738201269777,16.8078,3140.0,3139.4,0.4992]
[1738201269975,0.63704,3139.7,3139.4,0.4992]
[1738201271178,3.2078,3140.0,3139.5,0.63706]
[1738201271372,0.63703,3139.7,3139.4,1.13628]
[1738201271578,0.63701,3139.8,3139.5,0.63707]
[1738201271779,0.63699,3139.9,3139.5,0.63707]
[1738201272176,3.2078,3140.0,3139.5,2.82980147]
[1738201272575,3.84478,3140.0,3139.6,0.63704]
[1738201272779,0.63695,3140.2,3139.8,3.46680147]
[1738201273080,0.00477951,3140.3,3139.8,2.82980147]
[1738201273478,0.63696,3140.1,3139.8,2.82980147]
[1738201273678,0.00477951,3140.3,3139.8,2.82980147]
[1738201273880,0.00477951,3140.3,3140.2,3.46673147]
[1738201274174,0.00477951,3140.3,3140.1,0.5212]
[1738201274981,0.00477951,3140.3,3140.1,1.15814]
[1738201275375,0.00477951,3140.3,3140.2,0.63693]
[1738201275571,3.2078,3140.9,3140.1,0.5212]
[1738201275777,3.2078,3140.9,3140.5,0.63685]
[1738201275778,0.63681,3140.8,3140.5,0.63685]
[1738201275982,0.63681,3140.8,3140.6,0.5299]
[1738201276173,0.63683,3140.7,3140.6,0.5299]
[1738201276484,0.63683,3140.7,3140.6,0.28816307]
[1738201276682,3.2078,3140.9,3140.6,0.19629154]
[1738201276883,0.63683,3140.7,3140.6,0.19629154]
[1738201277082,3.2078,3140.9,3140.6,0.19629154]
[1738201277287,3.84459,3140.9,3140.6,0.19629154]
[1738201277491,3.2078,3140.9,3140.6,0.19629154]
[1738201277682,0.63681,3140.8,3140.6,0.19629154]
[1738201277989,3.2078,3140.9,3140.3,0.00477951]
[1738201278186,0.63689,3140.4,3140.3,0.00477951]
[1738201278782,14.23689,3140.4,3140.3,0.00477951]
[1738201279280,0.63689,3140.4,3140.3,0.00477951]
[1738201279682,14.23689,3140.4,3140.3,0.00477951]
[1738201280388,0.63689,3140.4,3140.3,0.00477951]
[1738201281786,1.15089,3140.4,3140.3,0.00477951]
[1738201282089,14.75089,3140.4,3140.3,0.00477951]
[1738201282791,0.63707,3139.5,3139.3,1.0578]
[1738201283486,4.6538,3140.0,3139.3,1.69491]
[1738201283686,4.6538,3140.0,3139.3,1.0578]
[1738201283884,0.63703,3139.8,3139.4,0.63708]
[1738201284482,4.6538,3140.0,3139.3,4.4920938]
[1738201284686,3.84477,3140.0,3139.7,0.63703]
[1738201284994,1.952,3140.4,3139.7,0.63701]
[1738201285288,0.63696,3140.1,3139.7,0.63701]
[1738201285684,1.952,3140.4,3139.3,4.4920938]
[1738201285884,0.63698,3140.0,3139.7,0.63703]
[1738201286091,0.63698,3140.0,3139.6,0.63704]
[1738201286390,0.63698,3140.0,3139.3,4.4920938]
[1738201286591,1.952,3140.4,3139.3,4.4920938]
[1738201286788,0.63696,3140.1,3139.6,3.2078]
[1738201287092,0.63696,3140.1,3139.7,1.18981]
[1738201287287,0.514,3140.4,3139.7,3.98231429]
[1738201287492,1.429,3140.8,3140.0,3.2078]
[1738201287787,1.429,3140.8,3140.1,1.18884]
[1738201287788,0.63689,3140.4,3140.1,1.18884]